lending/lending_fUSD_20260209
["ID","MTS","AMOUNT","RATE_DAILY","PERIOD"]
[404894839,1770659438319,-39746.03970166,0.00017012,2]
[404894841,1770659438329,-151.50510114,0.00017028,2]
[404894843,1770659438339,-578.20924308,0.00017035,2]
[404894845,1770659438349,-10000.0,0.00017035,2]
[404894848,1770659438578,-19677.18896963,0.00017035,2]
[404894849,1770659438587,-322.6107,0.00017043,2]
[404894850,1770659438597,-174.61919141,0.00017043,2]
[404894851,1770659438606,-600.0,0.00017044,2]
[404894852,1770659438615,-39746.03970166,0.0001705,2]
[404894853,1770659438625,-27461.48705737,0.00017054,2]
[404894854,1770659438635,-19677.18896963,0.00017083,2]
[404894855,1770659438645,-39746.03970166,0.00017089,2]
[404894856,1770659438656,-500.0,0.00017125,2]
[404894857,1770659438666,-500.0,0.00017125,2]
[404894858,1770659438677,-151.0,0.00017125,2]
[404894859,1770659438687,-151.0,0.00017125,2]
[404894860,1770659438697,-151.0,0.00017125,2]
[404894861,1770659438707,-151.0,0.00017125,2]
[404894862,1770659438717,-151.0,0.00017125,2]
[404894863,1770659438727,-151.0,0.00017125,2]
[404894864,1770659438737,-151.0,0.00017125,2]
[404894865,1770659438747,-151.0,0.00017125,2]
[404894866,1770659438758,-200.0,0.00017125,2]
[404894867,1770659438768,-151.0,0.00017125,2]
[404894868,1770659438777,-151.0,0.00017125,2]
[404894869,1770659438787,-151.0,0.00017125,2]
[404894870,1770659438797,-500.0,0.00017125,2]
[404894871,1770659438806,-151.0,0.00017125,2]
[404894872,1770659438815,-151.0,0.00017125,2]
[404894873,1770659438825,-151.0,0.00017125,2]
[404894874,1770659438834,-151.0,0.00017125,2]
[404894875,1770659438846,-151.0,0.00017125,2]
[404894876,1770659438856,-151.0,0.00017125,2]
[404894877,1770659438865,-500.0,0.00017125,2]
[404894878,1770659438874,-151.0,0.00017125,2]
[404894879,1770659438884,-151.0,0.00017125,2]
[404894880,1770659438893,-151.0,0.00017125,2]
[404894881,1770659438903,-500.0,0.00017125,2]
[404894882,1770659438912,-151.0,0.00017125,2]
[404894883,1770659438922,-500.0,0.00017125,2]
[404894884,1770659438932,-151.0,0.00017125,2]
[404894885,1770659438941,-200.0,0.00017125,2]
[404894886,1770659438951,-151.0,0.00017125,2]
[404894887,1770659438960,-500.0,0.00017125,2]
[404894888,1770659438971,-151.0,0.00017125,2]
[404894889,1770659438980,-500.0,0.00017125,2]
[404894890,1770659438990,-151.0,0.00017125,2]
[404894891,1770659439002,-500.0,0.00017125,2]
[404894892,1770659439014,-151.0,0.00017125,2]
[404894893,1770659439023,-500.0,0.00017125,2]
[404894894,1770659439034,-151.0,0.00017125,2]
[404894895,1770659439043,-500.0,0.00017125,2]
[404894896,1770659439054,-500.0,0.00017125,2]
[404894897,1770659439064,-500.0,0.00017125,2]
[404894898,1770659439073,-151.0,0.00017125,2]
[404894899,1770659439083,-500.0,0.00017125,2]
[404894900,1770659439093,-151.0,0.00017125,2]
[404894901,1770659439103,-500.0,0.00017125,2]
[404894902,1770659439112,-576.93318184,0.00017125,2]
[404894903,1770659439122,-500.0,0.00017125,2]
[404894904,1770659439131,-151.0,0.00017125,2]
[404894905,1770659439140,-500.0,0.00017125,2]
[404894906,1770659439149,-151.0,0.00017125,2]
[404894907,1770659439159,-500.0,0.00017125,2]
[404894908,1770659439168,-500.0,0.00017125,2]
[404894909,1770659439177,-500.0,0.00017125,2]
[404894910,1770659439186,-500.0,0.00017125,2]
[404894911,1770659439195,-500.0,0.00017125,2]
[404894912,1770659439204,-500.0,0.00017125,2]
[404894913,1770659439213,-500.0,0.00017125,2]
[404894914,1770659439222,-500.0,0.00017125,2]
[404894915,1770659439231,-500.0,0.00017125,2]
[404894916,1770659439240,-500.0,0.00017125,2]
[404894917,1770659439249,-500.0,0.00017125,2]
[404894918,1770659439258,-500.0,0.00017125,2]
[404894919,1770659439267,-500.0,0.00017125,2]
[404894920,1770659439277,-500.0,0.00017125,2]
[404894921,1770659439286,-500.0,0.00017125,2]
[404894922,1770659439296,-500.0,0.00017125,2]
[404894923,1770659439305,-500.0,0.00017125,2]
[404894924,1770659439314,-1382.31,0.00017125,2]
[404894925,1770659439323,-39746.03970166,0.00017127,2]
[404894926,1770659439333,-19677.18896963,0.0001713,2]
[404894927,1770659439344,-500.0,0.00017134,2]
[404894928,1770659439353,-412.91430448,0.00017134,2]
[404894929,1770659439363,-500.0,0.00017134,2]
[404894930,1770659439373,-500.0,0.00017134,2]
[404894931,1770659439382,-297.40070167,0.00017134,2]
[404894932,1770659439391,-165.58701727,0.00017134,2]
[404894933,1770659439403,-2987.646,0.00017134,2]
[404894934,1770659439413,-487.0,0.00017135,2]
[404894935,1770659439422,-487.0,0.00017135,2]
[404894936,1770659439431,-487.0,0.00017135,2]
[404894937,1770659439441,-487.0,0.00017135,2]
[404894938,1770659439452,-524.44,0.00017135,2]
[404894939,1770659439464,-6090.73329404,0.00017146,2]
[404894940,1770659439478,-1522.64795301,0.00017156,2]
[404894941,1770659439487,-345.91474539,0.00017156,2]
[404894942,1770659439496,-1024.86760112,0.00017156,2]
[404894943,1770659439505,-2312.27,0.00017157,2]
[404894944,1770659439514,-39746.03970166,0.00017166,2]
[404894945,1770659439524,-19677.18896963,0.00017178,2]
[404894946,1770659439533,-39746.03970166,0.00017204,2]
[404894947,1770659439541,-19677.18896963,0.00017225,2]
[404894948,1770659439550,-1875.8279282,0.0001723,2]
[404894949,1770659439559,-1000.0,0.00017234,2]
[404894950,1770659439568,-1087.9262344,0.00017234,2]
[404894951,1770659439577,-39746.03970166,0.00017243,2]
[404894952,1770659439586,-19677.18896963,0.00017273,2]
[404894953,1770659439595,-39746.03970166,0.00017281,2]
[404894954,1770659439604,-6090.73329404,0.00017297,2]
[404894955,1770659439613,-5372.955056,0.000173,2]
[404894956,1770659439621,-1899.71658579,0.00017323,2]
[404894957,1770659439630,-151.0,0.00017348,2]
[404894958,1770659439638,-1063.54173058,0.0001735,5]
[404894959,1770659439647,-1500000.0,0.00017351,2]
[404894960,1770659439656,-383.07865116,0.00017373,2]
[404894961,1770659439666,-1511.50552761,0.00017373,2]
[404894962,1770659439674,-538.68700604,0.00017387,2]
[404894963,1770659439683,-1382.31,0.00017399,2]
[404894964,1770659439692,-500.0,0.00017408,2]
[404894965,1770659439701,-600.0,0.00017444,2]
[404894966,1770659439710,-6090.73329404,0.00017448,2]
[404894967,1770659439719,-4170.11211994,0.000175,2]
[404894968,1770659439729,-217.18,0.00017552,2]
[404894969,1770659439739,-200.0,0.00017556,2]
[404894970,1770659439748,-181.08010149,0.00017591,2]
[404894971,1770659439757,-6090.73329404,0.00017599,2]
[404894972,1770659439767,-2460.69490808,0.0001764,2]
[404894973,1770659439776,-500.0,0.00017673,2]
[404894974,1770659439785,-200.0,0.00017673,2]
[404894975,1770659439795,-200.0,0.00017673,2]
[404894976,1770659439804,-1382.31,0.00017673,2]
[404894977,1770659439813,-500.0,0.00017682,2]
[404894978,1770659439823,-565.0,0.00017683,2]
[404894979,1770659439832,-408.0,0.00017683,2]
[404894980,1770659439841,-429.0,0.00017683,2]
[404894981,1770659439850,-438.0,0.00017683,2]
[404894982,1770659439860,-1000.0,0.0001769,2]
[404894983,1770659439869,-1000.0,0.0001769,2]
[404894984,1770659439878,-1000.0,0.0001769,2]
[404894985,1770659439886,-1000.0,0.0001769,2]
[404894986,1770659439896,-1000.0,0.0001769,2]
[404894987,1770659439905,-1000.0,0.0001769,2]
[404894988,1770659439914,-506.851,0.0001769,2]
[404894989,1770659439924,-250.0,0.00017725,2]
[404894991,1770659439933,-6090.73329404,0.00017749,2]
[404894992,1770659439942,-500.0,0.00017799,2]
[404894993,1770659439951,-257.1490003,0.00017799,2]
[404894994,1770659439961,-2000.0,0.000178,2]
[404894995,1770659439972,-150.0,0.00017808,2]
[404894996,1770659439982,-339.0,0.00017812,2]
[404894997,1770659439992,-192.80294,0.0001782,2]
[404894998,1770659440001,-192.80294,0.0001782,2]
[404894999,1770659440011,-63398.97925082,0.0001783,2]
[404895000,1770659440020,-150.0,0.00017863,2]
[404895001,1770659440030,-150.29839688,0.000179,2]
[404895002,1770659440039,-1000.0,0.000179,2]
[404895003,1770659440048,-17592.5852,0.000179,2]
[404895004,1770659440057,-500.0,0.000179,2]
[404895005,1770659440066,-177.17121567,0.000179,2]
[404895006,1770659440075,-237.3935,0.000179,2]
[404895007,1770659440084,-876.3883,0.000179,2]
[404895008,1770659440095,-2000.0,0.000179,2]
[404895009,1770659440104,-538.68700604,0.000179,2]
[404895010,1770659440113,-383.07865116,0.000179,2]
[404895011,1770659440122,-1511.50552761,0.000179,2]
[404895012,1770659440131,-6090.73329404,0.000179,2]
[404895013,1770659440141,-1899.71658579,0.000179,2]
[404895014,1770659440150,-2577.0,0.000179,2]
[404895015,1770659440159,-150.0,0.00017918,2]
[404895016,1770659440169,-226.0,0.00017942,2]
[404895017,1770659440180,-1382.31,0.00017947,2]
[404895018,1770659440190,-500.0,0.00017956,2]
[404895019,1770659440199,-200.0,0.00017972,2]
[404895020,1770659440208,-2312.27,0.00017974,2]
[404895021,1770659440218,-1204.0,0.00017983,2]
[404895022,1770659440227,-9035.0445932,0.00017985,2]
[404895023,1770659440237,-378.96616646,0.0001799,2]
[404895024,1770659440246,-151.0,0.00017997,2]
[404895025,1770659440255,-1000.0,0.00017998,2]
[404895026,1770659440265,-300.0,0.00017999,2]
[404895027,1770659440274,-172.31661001,0.00017999,2]
[404895028,1770659440284,-300.0,0.00017999,2]
[404895029,1770659440293,-300.0,0.00017999,2]
[404895030,1770659440303,-300.0,0.00017999,2]
[404895031,1770659440313,-3788590.88124022,0.00018,2]
[404895032,1770659440322,-7505.7239404,0.00018,2]
[404895033,1770659440333,-109592.64721999,0.00018,2]
[404895034,1770659440344,-4644689.258327,0.00018,2]
[404895035,1770659440358,-1811.16,0.00018,2]
[404895036,1770659440369,-268.83358263,0.00018,2]
[404895037,1770659440380,-388499.9999999,0.00018,2]
[404895038,1770659440392,-383.909501,0.00018,2]
[404895039,1770659440435,-2031.37387273,0.00018,2]
[404895040,1770659440447,-412.0,0.00018,2]
[404895041,1770659440460,-608.80258342,0.00018,2]
[404895042,1770659440471,-280.46799494,0.00018,2]
[404895043,1770659440483,-684.4342844,0.00018,2]
[404895047,1770659443776,-324.56607223,0.00018,2]
[404895048,1770659444610,-400.2,0.00018,2]
[404895050,1770659444752,-343.82817213,0.00018,2]
[404895051,1770659444763,-637523.71764091,0.00018,2]
[404895052,1770659444774,-1546.92412223,0.00018,2]
[404895053,1770659444785,-479.3174038,0.00018,2]
[404895056,1770659446244,-1518.81597667,0.00016845,2]
[404895057,1770659446257,-981.18402333,0.00016845,2]
[404895058,1770659446266,-1113.11061205,0.00018,2]
[404895062,1770659446848,-253.11603381,0.00018,2]
[404895064,1770659446859,-14559.0,0.00018,2]
[404895065,1770659446871,-7555.6770185,0.00018,2]
[404895081,1770659512438,250.0,0.00015,2]
[404895086,1770659648548,151.0,0.0003561,31]
[404895087,1770659667106,205.17,0.000148,7]
[404895088,1770659667857,170.94,0.00016,2]
[404895089,1770659668265,151.0,0.0003561,31]
[404895094,1770659766050,-150.0,0.00016459,2]
[404895095,1770659781128,-307.78,0.000165,2]
[404895101,1770659796375,-250.0,0.00016504,2]
[404895106,1770659812581,-2125.183,0.00016508,2]
[404895107,1770659812605,-749.644,0.00016508,2]
[404895108,1770659824514,183.87,0.00012879,2]
[404895109,1770659824748,183.87,0.00016099,2]
[404895110,1770659827838,-304.19025214,0.00016645,2]
[404895111,1770659842994,-304.19025212,0.00016649,2]
[404895112,1770659846558,151.0,0.0003561,31]
[404895113,1770659858214,-304.19025212,0.00016652,2]
[404895114,1770659863491,4391.62949576,0.00016645,2]
[404895115,1770659863516,5000.01,0.00016645,2]
[404895116,1770659863543,5000.01,0.00016645,2]
[404895117,1770659863568,5000.01,0.00016645,2]
[404895118,1770659863594,5000.01,0.00016645,2]
[404895119,1770659863620,5000.01,0.00016645,2]
[404895120,1770659863644,5000.01,0.00016645,2]
[404895121,1770659863669,5000.01,0.00016645,2]
[404895122,1770659863692,5000.01,0.00016645,2]
[404895123,1770659863718,10000.01,0.00016645,2]
[404895124,1770659871396,-608.38050424,0.00016645,2]
[404895125,1770659878858,231.599786,0.0003561,31]
[404895126,1770659880363,231.599786,0.0003561,31]
[404895127,1770659882447,231.599786,0.0003561,31]
[404895128,1770659884287,231.599786,0.0003561,31]
[404895129,1770659911668,151.0,0.0003561,30]
[404895130,1770659936111,515.626076,0.0003561,31]
[404895131,1770659937637,515.626076,0.0003561,31]
[404895132,1770659939144,515.626076,0.0003561,31]
[404895133,1770659940941,515.626076,0.0003561,31]
[404895134,1770659951354,151.0,0.0003561,31]
[404895135,1770659951399,157.418421,0.0003561,31]
[404895136,1770659952870,151.0,0.0003561,31]
[404895137,1770659954509,151.0,0.0003561,31]
[404895138,1770659956406,151.0,0.0003561,31]
[404895139,1770660002734,1000.0,0.00015947,2]
[404895144,1770660007675,1928.970213,7.945e-05,2]
[404895152,1770660012529,151.0,0.00035616,31]
[404895156,1770660014055,151.0,0.00035616,31]
[404895159,1770660015989,151.0,0.00035616,31]
[404895183,1770660030499,842.16218836,0.00015755,2]
[404895185,1770660031052,151.0,0.00035616,31]
[404895206,1770660114015,412.500861,0.0003561,31]
[404895207,1770660115676,412.500861,0.0003561,31]
[404895208,1770660116947,412.500861,0.0003561,31]
[404895209,1770660118441,412.500861,0.0003561,31]
[404895213,1770660166443,185.279829,0.0003561,31]
[404895214,1770660167958,185.279829,0.0003561,31]
[404895215,1770660169800,185.279829,0.0003561,31]
[404895216,1770660171270,185.279829,0.0003561,31]
[404895217,1770660181748,1054.73,0.00015667,2]
[404895218,1770660203730,151.0,0.0003561,31]
[404895219,1770660248549,151.0,0.0003561,31]
[404895220,1770660249485,151.0,0.0003561,31]
[404895221,1770660251084,151.0,0.0003561,31]
[404895222,1770660252660,151.0,0.0003561,31]
[404895223,1770660268758,151.0,0.0003561,31]
[404895224,1770660281344,151.0,0.0003561,31]
[404895225,1770660293969,330.000689,0.0003561,31]
[404895226,1770660295427,330.000689,0.0003561,31]
[404895227,1770660296903,330.000689,0.0003561,31]
[404895228,1770660298341,330.000689,0.0003561,31]
[404895231,1770660338967,-176.16894792,0.00015754,2]
[404895232,1770660339055,-250.0,0.00015754,2]
[404895233,1770660339593,-222.84319611,0.00015754,2]
[404895234,1770660340183,-277.15680389,0.00015754,2]
[404895235,1770660340215,-174.44437109,0.00015754,2]
[404895236,1770660340250,-99.38668099,0.00015754,2]
[404895237,1770660359276,933.197,0.00035616,30]
[404895248,1770660447855,151.0,0.0003561,31]
[404895249,1770660448832,171.97871609,0.000356,30]
[404895250,1770660449753,10000.01,0.00015624,2]
[404895251,1770660449780,10000.01,0.00015624,2]
[404895252,1770660449806,1431.28,0.00015624,2]
[404895253,1770660458004,151.0,0.0003561,31]
[404895254,1770660459652,151.0,0.0003561,31]
[404895255,1770660461464,151.0,0.0003561,31]
[404895256,1770660461717,157.65622,0.0003561,31]
[404895257,1770660463111,151.0,0.0003561,31]
[404895258,1770660474110,264.000551,0.0003561,31]
[404895259,1770660475553,264.000551,0.0003561,31]
[404895260,1770660477213,264.000551,0.0003561,31]
[404895261,1770660478692,264.000551,0.0003561,31]
[404895262,1770660498831,500.0,0.00015615,2]
[404895263,1770660506362,8068.73,0.00015615,2]
[404895264,1770660506386,5375.37,0.00015615,2]
[404895446,1770660551144,151.0,0.0003561,31]
[404895494,1770660553113,151.0,0.0003561,31]
[404895495,1770660554345,500.0,0.00015631,2]
[404895496,1770660554666,151.0,0.0003561,31]
[404895497,1770660555268,4124.64,0.00015631,2]
[404895498,1770660555291,1577.06,0.00015631,2]
[404895499,1770660558229,3240.0,0.0001566,2]
[404895502,1770660601599,1200.0,0.00015754,2]
[404895503,1770660603948,282.0,0.00015754,2]
[404895517,1770660612925,151.0,0.0003561,31]
[404895520,1770660614636,151.0,0.0003561,31]
[404895524,1770660616442,207.084852,0.0003561,31]
[404895539,1770660624270,885.17,0.00035616,30]
[404895552,1770660632163,-195.0,0.00015754,2]
[404895553,1770660632173,-205.48850884,0.00015755,2]
[404895554,1770660632183,-205.48850884,0.00015755,2]
[404895555,1770660632193,-269.91225589,0.00015755,2]
[404895556,1770660632216,-4546.78607394,0.00015755,2]
[404895557,1770660632227,-2370.53948181,0.00015755,2]
[404895558,1770660632237,-365.82459208,0.000159,2]
[404895560,1770660632246,-365.82459207,0.00015965,2]
[404895561,1770660632256,-1000.0269859,0.00016,2]
[404895562,1770660632266,-238.93852814,0.0001603,2]
[404895563,1770660632289,-126.88606393,0.0001603,2]
[404895564,1770660632299,-300.0,0.00016121,2]
[404895565,1770660632308,-300.0,0.00016121,2]
[404895566,1770660632321,-283.26860014,0.00016121,2]
[404895567,1770660632332,-16.73139986,0.00016121,2]
[404895568,1770660632341,-300.0,0.00016122,2]
[404895569,1770660632354,-300.0,0.00016122,2]
[404895570,1770660632364,-1200.0,0.00016123,2]
[404895571,1770660632374,-550.0,0.00016123,2]
[404895572,1770660632384,-1545.16649046,0.00016124,2]
[404895573,1770660632395,-3186.545,0.00016124,2]
[404895574,1770660632406,-1615.04398573,0.00016124,2]
[404895575,1770660632420,-781.98694337,0.00016124,2]
[404895576,1770660632432,-3240.38433072,0.00016124,2]
[404895577,1770660632443,-42185.18476037,0.00016124,2]
[404895578,1770660632454,-4873.50083603,0.00016124,2]
[404895579,1770660632464,-750.0,0.00016133,2]
[404895580,1770660632473,-500.0,0.00016133,2]
[404895581,1770660632482,-337.66241168,0.00016133,2]
[404895582,1770660632491,-3214.229,0.00016133,2]
[404895583,1770660632501,-10383.77288745,0.00016134,2]
[404895584,1770660632513,-2017.58557692,0.00016134,2]
[404895585,1770660632530,-16399.51153563,0.00016134,2]
[404895586,1770660632540,-252.64411097,0.00016524,2]
[404895588,1770660632550,-1500000.0,0.00016534,2]
[404895589,1770660632560,-50138.96069302,0.00016544,2]
[404895590,1770660632570,-2500.0,0.00016559,2]
[404895591,1770660632580,-14463.94809379,0.00016608,2]
[404895592,1770660632590,-500.0,0.00016635,2]
[404895593,1770660632604,-500.0,0.00016635,2]
[404895594,1770660632614,-500.0,0.00016635,2]
[404895595,1770660632624,-500.0,0.00016635,2]
[404895597,1770660632634,-500.0,0.00016635,2]
[404895599,1770660632643,-500.0,0.00016635,2]
[404895600,1770660632653,-500.0,0.00016635,2]
[404895601,1770660632663,-500.0,0.00016635,2]
[404895602,1770660632673,-500.0,0.00016635,2]
[404895603,1770660632683,-500.0,0.00016635,2]
[404895604,1770660632693,-200.0,0.00016635,2]
[404895605,1770660632702,-500.0,0.00016635,2]
[404895606,1770660632713,-151.0,0.00016635,2]
[404895607,1770660632726,-500.0,0.00016635,2]
[404895608,1770660632736,-151.0,0.00016635,2]
[404895609,1770660632745,-151.0,0.00016635,2]
[404895611,1770660632754,-151.0,0.00016635,2]
[404895612,1770660632764,-151.0,0.00016635,2]
[404895613,1770660632776,-500.0,0.00016635,2]
[404895614,1770660632785,-151.0,0.00016635,2]
[404895615,1770660632795,-151.0,0.00016635,2]
[404895616,1770660632804,-500.0,0.00016635,2]
[404895617,1770660632815,-151.0,0.00016635,2]
[404895618,1770660632825,-151.0,0.00016635,2]
[404895619,1770660632834,-500.0,0.00016635,2]
[404895620,1770660632844,-151.0,0.00016635,2]
[404895621,1770660632856,-151.0,0.00016635,2]
[404895622,1770660632866,-500.0,0.00016635,2]
[404895623,1770660632875,-151.0,0.00016635,2]
[404895624,1770660632885,-151.0,0.00016635,2]
[404895625,1770660632894,-500.0,0.00016635,2]
[404895626,1770660632904,-151.0,0.00016635,2]
[404895627,1770660632913,-151.0,0.00016635,2]
[404895628,1770660632922,-500.0,0.00016635,2]
[404895629,1770660632934,-151.0,0.00016635,2]
[404895630,1770660632943,-151.0,0.00016635,2]
[404895631,1770660632952,-500.0,0.00016635,2]
[404895632,1770660632961,-151.0,0.00016635,2]
[404895633,1770660632970,-200.0,0.00016635,2]
[404895634,1770660632980,-500.0,0.00016635,2]
[404895635,1770660632990,-151.0,0.00016635,2]
[404895636,1770660632999,-500.0,0.00016635,2]
[404895637,1770660633009,-151.0,0.00016635,2]
[404895638,1770660633019,-500.0,0.00016635,2]
[404895639,1770660633031,-500.0,0.00016635,2]
[404895640,1770660633040,-151.0,0.00016635,2]
[404895641,1770660633049,-151.0,0.00016635,2]
[404895642,1770660633059,-151.0,0.00016635,2]
[404895643,1770660633068,-151.0,0.00016635,2]
[404895644,1770660633077,-151.0,0.00016635,2]
[404895645,1770660633086,-151.0,0.00016635,2]
[404895646,1770660633095,-151.0,0.00016635,2]
[404895647,1770660633109,-151.0,0.00016635,2]
[404895648,1770660633118,-151.0,0.00016635,2]
[404895649,1770660633128,-500.0,0.00016635,2]
[404895650,1770660633137,-151.0,0.00016635,2]
[404895651,1770660633146,-151.0,0.00016635,2]
[404895652,1770660633156,-500.0,0.00016644,2]
[404895653,1770660633165,-502.58453595,0.00016644,2]
[404895654,1770660633175,-542.174732,0.00016644,2]
[404895655,1770660633184,-500.0,0.00016644,2]
[404895656,1770660633194,-500.0,0.00016644,2]
[404895657,1770660633203,-500.0,0.00016644,2]
[404895658,1770660633212,-500.0,0.00016644,2]
[404895659,1770660633221,-500.0,0.00016644,2]
[404895660,1770660633230,-306.74781939,0.00016644,2]
[404895661,1770660633239,-500.0,0.00016644,2]
[404895662,1770660633249,-500.0,0.00016644,2]
[404895663,1770660633258,-500.0,0.00016644,2]
[404895664,1770660633267,-500.0,0.00016644,2]
[404895665,1770660633276,-500.0,0.00016644,2]
[404895666,1770660633285,-519.87500599,0.00016644,2]
[404895667,1770660633295,-500.0,0.00016644,2]
[404895668,1770660633304,-500.0,0.00016644,2]
[404895669,1770660633313,-500.0,0.00016644,2]
[404895670,1770660633329,-500.0,0.00016644,2]
[404895671,1770660633342,-500.0,0.00016644,2]
[404895672,1770660633354,-500.0,0.00016644,2]
[404895673,1770660633363,-500.0,0.00016644,2]
[404895674,1770660633373,-500.0,0.00016644,2]
[404895675,1770660633383,-500.0,0.00016644,2]
[404895676,1770660633392,-500.0,0.00016644,2]
[404895677,1770660633402,-500.0,0.00016644,2]
[404895679,1770660633411,-500.0,0.00016644,2]
[404895680,1770660633421,-500.0,0.00016644,2]
[404895681,1770660633430,-500.0,0.00016644,2]
[404895682,1770660633439,-502.70550867,0.00016644,2]
[404895683,1770660633449,-422.20321825,0.00016645,2]
[404895684,1770660633458,-50138.96069299,0.00016695,2]
[404895685,1770660633468,-500.0,0.00016744,2]
[404895686,1770660633477,-500.0,0.00016744,2]
[404895687,1770660633487,-500.0,0.00016744,2]
[404895688,1770660633496,-500.0,0.00016744,2]
[404895689,1770660633506,-500.0,0.00016744,2]
[404895690,1770660633515,-500.0,0.00016744,2]
[404895691,1770660633524,-500.0,0.00016744,2]
[404895692,1770660633534,-500.0,0.00016744,2]
[404895693,1770660633543,-500.0,0.00016744,2]
[404895694,1770660633553,-500.0,0.00016744,2]
[404895695,1770660633563,-500.0,0.00016744,2]
[404895696,1770660633572,-500.0,0.00016744,2]
[404895697,1770660633581,-500.0,0.00016744,2]
[404895698,1770660633591,-500.0,0.00016744,2]
[404895699,1770660633602,-500.0,0.00016744,2]
[404895700,1770660633611,-500.0,0.00016744,2]
[404895701,1770660633621,-500.0,0.00016744,2]
[404895702,1770660633630,-500.0,0.00016744,2]
[404895703,1770660633640,-500.0,0.00016744,2]
[404895704,1770660633649,-500.0,0.00016744,2]
[404895705,1770660633659,-500.0,0.00016744,2]
[404895706,1770660633669,-500.0,0.00016744,2]
[404895707,1770660633679,-501.72860559,0.00016744,2]
[404895708,1770660633688,-500.0,0.00016744,2]
[404895709,1770660633698,-500.0,0.00016744,2]
[404895710,1770660633707,-500.0,0.00016744,2]
[404895711,1770660633716,-500.0,0.00016744,2]
[404895712,1770660633726,-500.0,0.00016744,2]
[404895713,1770660633735,-500.0,0.00016744,2]
[404895714,1770660633744,-500.0,0.00016744,2]
[404895715,1770660633754,-500.0,0.00016744,2]
[404895716,1770660633763,-500.0,0.00016744,2]
[404895717,1770660633773,-500.0,0.00016744,2]
[404895718,1770660633786,-500.0,0.00016744,2]
[404895719,1770660633795,-500.0,0.00016744,2]
[404895720,1770660633805,-500.0,0.00016744,2]
[404895721,1770660633814,-500.0,0.00016744,2]
[404895722,1770660633824,-500.0,0.00016744,2]
[404895723,1770660633834,-500.0,0.00016744,2]
[404895724,1770660633843,-500.0,0.00016744,2]
[404895725,1770660633854,-500.0,0.00016744,2]
[404895726,1770660633864,-500.0,0.00016744,2]
[404895727,1770660633878,-500.0,0.00016744,2]
[404895728,1770660633887,-500.0,0.00016744,2]
[404895729,1770660633897,-500.0,0.00016744,2]
[404895730,1770660633907,-500.0,0.00016744,2]
[404895731,1770660633916,-500.0,0.00016744,2]
[404895732,1770660633925,-500.0,0.00016744,2]
[404895733,1770660633935,-500.0,0.00016744,2]
[404895734,1770660633944,-500.0,0.00016744,2]
[404895735,1770660633953,-500.0,0.00016744,2]
[404895736,1770660633962,-500.0,0.00016744,2]
[404895737,1770660633971,-500.0,0.00016744,2]
[404895738,1770660633980,-500.0,0.00016744,2]
[404895739,1770660633990,-500.0,0.00016744,2]
[404895740,1770660633999,-500.0,0.00016744,2]
[404895741,1770660634008,-500.0,0.00016744,2]